Cogmind - Beta 17.1 @@@ ROGUE MODE // 2026.09.08 @ 04:08:41 Player: Clog Result: Destroyed by P-70 Sage with High-powered Shock Rifle Performance ------------- Evolutions (5) 2500 Regions Visited (4) 800 Robots Destroyed (59) 295 Value Destroyed (2116) 2116 Prototype IDs (7) 140 Alien Tech Used (0) 0 Bonus (800) 800 TOTAL SCORE: 6651 Bonus ------- Registered with UFD 300 Met Optimus in HQ 500 Cogmind --------- Core Integrity 0/1000 Matter 156/300 Energy 83/100 System Corruption 13% Temperature Cool (0) Movement Core (100) Ox1 Location -5/Factory Parts ------- > --- POWER (1) -------- (None) > --- PROPULSION (4) --- (None) > --- UTILITY (9) ------ (None) > --- WEAPON (3) ------- Improved Remote Datajack > --- INVENTORY (5) ---- A0-MCA's Component Scanner Peak State ------------ > --- POWER ------------ Neutrino Core > --- PROPULSION ------- Spiked Medium Treads Spiked Medium Treads Spiked Medium Treads Spiked Medium Treads > --- UTILITY ---------- Advanced Heat Sink Small Storage Unit Structural Scanner Improved Signal Interpreter Weapon Cycler Improved Medium Armor Plating > --- WEAPON ----------- Spread Laser Heavy Assault Rifle Gauss Rifle > --- INVENTORY -------- Light Nuclear Core A0-MCA's Component Scanner Wave Gun Heavy Phase Cannon Heavy Assault Rifle Heavy Missile Launcher Remote Datajack Makeshift Sword [Rating: 55] Favorites ----------- Power Ion Engine Engine Ion Engine Power Core Neutrino Core Propulsion Light Treads Treads Light Treads Leg Aluminum Leg Utility Small Storage Unit Device Seismic Detector Storage Small Storage Unit Processor Improved Signal Interpreter Protection Medium Reactive Plating Weapon Spread Laser Energy Gun Spread Laser Energy Cannon Advanced Beam Cannon Ballistic Gun Gauss Rifle Launcher Heavy Missile Launcher Special Weapon Improved Remote Datajack Slashing Weapon Makeshift Sword Build | -11 -10 -10 -7 -5 ------- Run | Yrd Mat Sub Scr Fac Slots Evolved 10 | . . . . 10 Power . | . . . . . Propulsion 2 | . . . . 2 Utility 7 | . . . . 7 Weapon 1 | . . . . 1 Parts Attached 45 | 7 4 3 5 26 Power 6 | 1 . 1 . 4 Engine 2 | 1 . 1 . . Core 4 | . . . . 4 Reactor . | . . . . . Propulsion 12 | 2 2 1 3 4 Treads 10 | . 2 1 3 4 Leg 2 | 2 . . . . Wheel . | . . . . . Hover . | . . . . . Flight . | . . . . . Utility 11 | 2 . . 1 8 Device 7 | 1 . . 1 5 Storage 1 | 1 . . . . Processor 1 | . . . . 1 Hackware . | . . . . . Protection 2 | . . . . 2 Artifact . | . . . . . Weapon 16 | 2 2 1 1 10 Energy Gun 3 | . 1 1 . 1 Energy Cannon 2 | . 1 . . 1 Ballistic Gun 8 | 2 . . . 6 Ballistic Cannon . | . . . . . Launcher 1 | . . . . 1 Special Weapon 1 | . . . . 1 Impact Weapon . | . . . . . Slashing Weapon 1 | . . . 1 . Piercing Weapon . | . . . . . Special Melee Weapon . | . . . . . Unidentified Prototypes 1 | . 1 . . . Parts Lost 32 | . . 3 . 29 Power 5 | . . 1 . 4 Propulsion 5 | . . 1 . 4 Utility 9 | . . . . 9 Weapon 13 | . . 1 . 12 Highest Loss Streak 15 | . . 2 . 15 To Critical Strikes 1 | . . . . 1 Average Backups 7 | 2 6 7 7 6 Power . | . 1 . . . Propulsion . | 1 1 . 1 . Utility 2 | . 1 2 2 1 Weapon 3 | . 2 4 3 3 Tool/Special . | . . . . . Unused Backups 12 | . 3 2 5 2 Power . | . . . . . Propulsion 1 | . . . 1 . Utility 4 | . 2 . 1 1 Weapon 6 | . 1 2 3 . Tool/Special 1 | . . . . 1 Average Slot Usage (%) 90 | . 100 97 100 62 Engine 10 | . 14 12 14 . Treads 22 | . 10 27 28 13 Leg 1 | . 17 . . . Device 14 | . 14 14 14 13 Storage 11 | . 14 14 13 4 Energy Gun 10 | . 5 14 14 3 Energy Cannon 8 | . . 11 13 . Ballistic Gun 4 | . 22 2 . 10 Peak Build Rating 55 | 7 10 11 22 55 Average Rating 19 | 4 7 10 14 41 On Entrance 9 | . 7 9 11 22 Avg Prop Armor Cover (%) . | . . . . . Naked Turns 20 | . . . . 20 Heaviest Build 45 | 12 14 18 18 45 Greatest Support 112 | 20 40 40 56 112 Greatest Overweight (x) 7 | 2 . . . 7 Average Overweight (x) . | . . . . . Largest Inventory Capacity 8 | 8 8 8 8 8 Average Capacity 7 | 7 8 8 7 7 Most Carried 8 | 5 8 8 8 8 Average Carried 7 | 2 6 7 7 6 Final Capacity 8 | 8 8 8 8 5 Final Carried 8 | 3 8 8 8 1 Class Distribution -------------------- 79% | Mutant 10% | Scavenger-Skirmisher 4% | Scavenger-Tank Dominant Class ---------------- Mutant | -10/Materials Mutant | -10/Subcaves Mutant | -7/Scraptown Scavenger-Skirmisher | -5/Factory Resources | -11 -10 -10 -7 -5 ----------- Run | Yrd Mat Sub Scr Fac Matter Collected 1522 | 298 152 108 56 908 Remotely . | . . . . . Salvage Created 2102 | 99 342 248 . 1413 Parts 117 | 5 31 15 . 66 Haulers Intercepted 1 | . . . . 1 Recyclers Shooed 2 | . . . . 2 Parts Field Recycled . | . . . . . Retrieved Matter . | . . . . . Parts Self-Destructed 10 | . . 10 . . Prevented . | . . . . . Parts Restored . | . . . . . Kills | -11 -10 -10 -7 -5 ------- Run | Yrd Mat Sub Scr Fac Combat Hostiles Destroyed 44 | . 8 8 . 28 Guns 32 | . 8 4 . 20 Cannons 4 | . . 4 . . AOE 7 | . . . . 7 Classes Destroyed 16 | 2 5 3 . 6 Worker 2 | . . . . 2 Builder 3 | . 1 . . 2 Tunneler 1 | 1 . . . . Hauler 1 | . . . . 1 Recycler 1 | 1 . . . . Operator 2 | . 2 . . . Turret 2 | . . 2 . . Watcher 3 | . 2 . . 1 Swarmer 15 | . 3 4 . 8 Grunt 11 | . 5 . . 6 Brawler 1 | . . . . 1 Sentry 5 | . . 1 . 4 Hunter 4 | . . . . 4 Programmer 4 | . . . . 4 Heavy 1 | . . . . 1 Subdweller 3 | . . 3 . . Best Kill Streak 7 | 2 6 4 . 7 Combat Bots Only 5 | . 3 4 . 5 Max Kills in Single Turn 7 | 1 1 1 . 7 Gunslinging . | . . . . . Exploded 5 | . . . . 5 Melee . | . . . . . Uniques/NPCs Destroyed . | . . . . . Combat | -11 -10 -10 -7 -5 -------- Run | Yrd Mat Sub Scr Fac Hostile Shots Fired 511 | . 36 107 . 368 Missed 154 | . 13 38 . 103 Hits 357 | . 23 69 . 265 Melee 1 | . . . . 1 Projectile 356 | . 23 69 . 264 AOE 1 | . . . . 1 Critical Strikes 9 | . . 1 . 8 Damage Taken 5986 | . 233 565 . 5188 Core 1127 | . 79 47 . 1001 Absorbed by Shields . | . . . . . Ignored by Resistances 288 | . . . . 288 Regen/Repaired (Parts) 293 | . . . . 293 Core Remaining (%) 74 | 100 . . 49 . Volleys Fired 196 | 7 38 33 . 118 Largest 3 | 2 2 2 . 3 Hottest 174 | 40 40 133 . 174 Shots Fired 395 | 14 76 47 . 258 Gun 355 | 14 76 23 . 242 Cannon 35 | . . 24 . 11 Launcher 2 | . . . . 2 Special 3 | . . . . 3 Kinetic 271 | 14 76 6 . 175 Thermal 119 | . . 41 . 78 Explosive 2 | . . . . 2 Electromagnetic . | . . . . . Robot Hit Streak 21 | 5 7 8 . 21 Robot Miss Streak 6 | 1 6 6 . 5 Penetration Max 1 | . . . . 1 Secondary Targets 7 | . 1 2 . 4 Max Gunslinging Chain 1 | . 1 1 . 1 Shots Hit Robots 299 | 11 42 40 . 206 Core Hits 191 | 5 20 27 . 139 Critical Kills . | . . . . . Critical Parts Destroyed 2 | . . . . 2 Critical Strikes 5 | . . . . 5 Burn 3 | . . . . 3 Destroy 2 | . . . . 2 Melee Attacks 7 | . . . . 7 Impact . | . . . . . Slashing 7 | . . . . 7 Piercing . | . . . . . Sneak Attacks . | . . . . . Combat Hostiles . | . . . . . Follow-up Attacks . | . . . . . Damage Inflicted 6149 | 109 448 624 . 4968 Guns 4551 | 109 448 260 . 3734 Cannons 575 | . . 364 . 211 Explosions 949 | . . . . 949 Melee 70 | . . . . 70 Ramming 4 | . . . . 4 Kinetic 3311 | 109 448 76 . 2678 Thermal 2184 | . . 548 . 1636 Explosive 548 | . . . . 548 Electromagnetic 32 | . . . . 32 Impact . | . . . . . Slashing 70 | . . . . 70 Piercing . | . . . . . Highest Corruption 13 | . . . . 13 Average Corruption 5 | . . . . 5 Corruption Purged . | . . . . . Corruption Blocked . | . . . . . Effects 20 | . . . . 20 Message Errors 1 | . . . . 1 Matter Fused 3 | . . . . 3 Heat Flow Errors 2 | . . . . 2 Energy Discharges 2 | . . . . 2 Parts Rejected 1 | . . . . 1 Parts Fused 1 | . . . . 1 Data Loss (minor) 4 | . . . . 4 Data Loss (major) 1 | . . . . 1 Misfires 2 | . . . . 2 Alerts 1 | . . . . 1 Weapon Failures 2 | . . . . 2 Overload Shots . | . . . . . Overflow Damage 222 | . . 2 . 220 Projectiles 25 | . . 2 . 23 Explosions 197 | . . . . 197 Melee . | . . . . . Knockbacks . | . . . . . Impact . | . . . . . Kinetic . | . . . . . Secondary . | . . . . . Self-Inflicted Damage 201 | . . . . 201 Shots 2 | . . . . 2 Rammed 1 | . . . . 1 Targets Rammed 1 | . . . . 1 Kicked . | . . . . . Crushed . | . . . . . Highest Temperature 271 | . 6 84 . 271 Average Temperature 69 | . 6 28 . 78 Received Heat Transfer 1029 | . 90 180 . 759 Effects 1 | . . . . 1 Energy Bleed 1 | . . . . 1 Siege Activations . | . . . . . Martial Activations . | . . . . . Shielding Activations . | . . . . . Robots Disrupted . | . . . . . Combat Hostiles . | . . . . . Robots Corrupted . | . . . . . Combat Hostiles . | . . . . . Parts Fried . | . . . . . Impact Corruptions . | . . . . . Robots Melted 1 | . . . . 1 Combat Hostiles 1 | . . . . 1 Parts Melted 4 | . . 1 . 3 Heat Transferred 3071 | . . 891 . 2180 Parts Sabotaged . | . . . . . Parts Stolen . | . . . . . Parts Stripped . | . . . . . Power Chain Reactions . | . . . . . Alert | -11 -10 -10 -7 -5 ------- Run | Yrd Mat Sub Scr Fac Maximum Alert Level 1 | . . . . 1 Low Security (%) 99 | 100 100 . . 99 Level 1 . | . . . . . Level 2 . | . . . . . Level 3 . | . . . . . Level 4 . | . . . . . Level 5 . | . . . . . High Security . | . . . . . Max Security . | . . . . . Peak Influence 262 | 10 140 . . 262 Initial . | . . . . . Average 52 | . 44 . . 60 Influence Increases 1589 | 10 268 320 . 991 Destroy 0b10 Robot/C 860 | . 160 140 . 560 Destroy 0b10 Robot/NC 65 | 10 25 . . 30 Destroy Leader 168 | . 34 . . 134 Successful Hack 8 | . 4 . . 4 Disable Machine 105 | . . . . 105 Destroy Structure 128 | . . . . 128 Partial Spotted 15 | . 15 . . . Lose Combat Pursuer 240 | . 30 180 . 30 Influence Decreases 1337 | 10 250 338 . 739 Entered New Map 10 | . . 10 . . Time Decay 941 | 10 184 298 . 449 Lost Part 320 | . . 30 . 290 Purge Threat 66 | . 66 . . . Squads Dispatched 17 | . 3 . . 14 Investigation 1 | . . . . 1 Extermination 2 | . . . . 2 Reinforcement 7 | . 3 . . 4 Assault . | . . . . . Garrison 7 | . . . . 7 Intercept . | . . . . . Searches Triggered . | . . . . . Construction Impeded 2 | . . . . 2 Haulers Reinforced . | . . . . . Active Scanning Responses . | . . . . . Cargo Convoy Interrupts 1 | . . . . 1 Stealth | -11 -10 -10 -7 -5 --------- Run | Yrd Mat Sub Scr Fac Distress Signals 2 | . 2 . . . Communications Jammed . | . . . . . Distress Signals . | . . . . . Times Spotted 76 | . 19 12 . 45 Peak Tracking Total 8 | . 4 5 . 8 Tactical Retreats 6 | . 1 3 . 2 Traps | -11 -10 -10 -7 -5 ------- Run | Yrd Mat Sub Scr Fac Traps Triggered . | . . . . . Indirectly . | . . . . . Trap Hack Attempts . | . . . . . Triggered . | . . . . . Disarmed . | . . . . . Reprogrammed . | . . . . . Reused . | . . . . . Traps Extracted . | . . . . . Installed . | . . . . . Triggered . | . . . . . Machines | -11 -10 -10 -7 -5 ---------- Run | Yrd Mat Sub Scr Fac Machines Disabled 7 | . . . . 7 Max in Single Turn 2 | . . . . 2 Machines Repaired . | . . . . . Machines Dismantled . | . . . . . Machines Sabotaged . | . . . . . Overloaded Fab Kills . | . . . . . Hacking | -11 -10 -10 -7 -5 --------- Run | Yrd Mat Sub Scr Fac Machines Accessed 9 | . 2 . 3 4 Terminals 3 | . 2 . . 1 Fabricators . | . . . . . Repair Stations 1 | . . . . 1 Recycling Units 2 | . . . . 2 Scanalyzers . | . . . . . Garrison Access . | . . . . . Total Hacks 21 | . 5 . 9 7 Successful 17 | . 4 . 9 4 Failed 4 | . 1 . . 3 Catastrophic 1 | . . . . 1 Database Lockouts . | . . . . . Manual 7 | . 3 . . 4 Terminals 7 | . 5 . . 2 Fabricators . | . . . . . Repair Stations 3 | . . . . 3 Recycling Units 2 | . . . . 2 Scanalyzers . | . . . . . Garrison Access . | . . . . . Terminal Hacks 14 | . 4 . 9 1 Record 8 | . . . 8 . Recycling Unit Index 1 | . . . . 1 Unreport Threat 1 | . 1 . . . Locate Traps 1 | . 1 . . . Maintenance Status 1 | . 1 . . . Zone Layout 1 | . 1 . . . Proto ID Catalog 1 | . . . 1 . Fabricator Hacks . | . . . . . Repair Station Hacks 2 | . . . . 2 Scan Component 1 | . . . . 1 Repair 1 | . . . . 1 Recycling Unit Hacks . | . . . . . Scanalyzer . | . . . . . Garrison Access Hacks . | . . . . . Unauthorized Hacks 1 | . . . . 1 Terminals . | . . . . . Fabricators . | . . . . . Repair Stations . | . . . . . Recycling Units 1 | . . . . 1 Fedlink 1 | . . . . 1 Scanalyzers . | . . . . . Garrison Access . | . . . . . Data Cores Recovered . | . . . . . Used . | . . . . . Hacking Detections 3 | . 1 . . 2 Full Trace Events . | . . . . . Feedback Events . | . . . . . Feedback Blocked . | . . . . . Robot Schematics Acquired . | . . . . . Robots Built . | . . . . . Authchips . | . . . . . Time . | . . . . . Total Robot Build Rating . | . . . . . Part Schematics Acquired . | . . . . . Parts Built . | . . . . . Authchips . | . . . . . Time . | . . . . . Total Part Build Rating . | . . . . . Part Studies Acquired . | . . . . . Parts Repaired 1 | . . . . 1 Time 50 | . . . . 50 Parts Recycled . | . . . . . Recycled Matter . | . . . . . Retrieved Matter . | . . . . . Retrieved Components . | . . . . . Parts Scanalyzed . | . . . . . Part Schematics Acquired . | . . . . . Parts Damaged . | . . . . . Bothacking | -11 -10 -10 -7 -5 ------------ Run | Yrd Mat Sub Scr Fac Used RIF Installer . | . . . . . Robots Hacked . | . . . . . Non-combat . | . . . . . Combat . | . . . . . Robot Hacks Applied . | . . . . . Relay Couplers Released . | . . . . . Fabnet Peak Effective % . | . . . . . Robots Rewired . | . . . . . Allies Hacked . | . . . . . Hacks Repelled . | . . . . . Allies | -11 -10 -10 -7 -5 -------- Run | Yrd Mat Sub Scr Fac Total Allies . | . . . . . Largest Group . | . . . . . Highest-Rated Group . | . . . . . Highest-Rated Ally . | . . . . . Initial UFD Resources 38 | . . . . 38 Total Orders . | . . . . . Ally Attacks . | . . . . . Total Damage . | . . . . . Kills . | . . . . . Allies Corrupted . | . . . . . Allies Melted . | . . . . . Intel | -11 -10 -10 -7 -5 ------- Run | Yrd Mat Sub Scr Fac Active Infowar (turns) 5941 | 7 561 831 3190 1352 Sensors 703 | . . . . 703 Structural 1204 | . . . . 1204 Seismic 4712 | 7 561 831 3190 123 Robot Analysis Total . | . . . . . Derelict Logs Recovered 2 | . . . 2 . Drone Launches . | . . . . . Drone Recoveries . | . . . . . Exploration | -11 -10 -10 -7 -5 ------------- Run | Yrd Mat Sub Scr Fac Turns Passed 6090 | 113 561 831 3190 1395 Spaces Moved 3196 | 67 231 455 1963 480 Core 47 | 12 . . . 35 Treads 2913 | . 50 455 1963 445 Legs 236 | 55 181 . . . Wheels . | . . . . . Hover . | . . . . . Flight . | . . . . . Fastest Speed 50 | 50 120 160 160 50 Average Speed 161 | 114 128 160 160 190 Slowest Speed 400 | 150 160 160 160 400 Overloaded Moves . | . . . . . Propulsion Burnouts . | . . . . . Robots Hopped . | . . . . . Potential Cave-ins . | . . . . . Cave-ins Triggered . | . . . . . Exploration Rate (%) 35 | 5 38 29 90 15 Regions Visited 4 Branch Regions 2 Pre-discovered Areas 2 | . . . 2 . Known Exits Taken . | . . . . . Unknown Exits Taken 4 | 1 1 1 1 . Scrap Searched 10 | . . 1 9 . Spaces Dug 2 | . . . . 2 Terrain Destroyed 59 | . . . . 59 Melee 2 | . . . . 2 Projectile 2 | . . . . 2 AOE 55 | . . . . 55 Terrain Rammed . | . . . . . Walls Destroyed . | . . . . . Machines Disabled . | . . . . . Actions | -11 -10 -10 -7 -5 --------- Run | Yrd Mat Sub Scr Fac Total 3783 | 90 428 510 2015 740 Wait 228 | . 140 2 18 68 Move 3192 | 66 230 454 1962 480 Hop . | . . . . . Pick Up 53 | 10 9 7 10 17 Fast Attach 13 | . 2 1 2 8 Attach 32 | 7 . 2 . 23 Detach 3 | . 1 . . 2 Swap 25 | . 2 3 6 14 Drop 24 | . 6 5 11 2 Fire 196 | 7 38 33 . 118 Melee 7 | . . . . 7 Ram . | . . . . . Kick . | . . . . . Crush 1 | . . . . 1 Escape Stasis . | . . . . . Rewire 9 | . . 3 6 . Trap . | . . . . . Miscellaneous . | . . . . . Route ------- -11/Scrapyard -10/Materials (discovered 2 exits: [*Mat] / [*Sub]) -10/Subcaves (discovered 2 exits: [*Rec] / *Scr) -7/Scraptown (discovered 2 exits: *Fac x2) -5/Factory History --------- Turn | Location | Event 12 | -11/Scrapyard | Discovered new exit (range 16) 114 | -11/Scrapyard | Entered Materials 314 | -10/Materials | Build established: Mutant 489 | -10/Materials | Discovered new exit (range 16) 665 | -10/Materials | Discovered new exit (range 5) 675 | -10/Materials | Entered Subcaves 676 | -10/Subcaves | Approached by a straggling Scientist 870 | -10/Subcaves | Core integrity fell below 50% 873 | -10/Subcaves | Discovered new exit (range 14) 1506 | -10/Subcaves | Entered Scraptown 1753 | -7/Scraptown | Visited Fellowship of the Rings 1807 | -7/Scraptown | Visited Symbiants 1855 | -7/Scraptown | Heard Great Nut preacher, LISTEN AND RECITE! 1871 | -7/Scraptown | Scanned Subdweller tech in exchange for log data 1876 | -7/Scraptown | Learned location of Zion (-7) 1878 | -7/Scraptown | Learned location of Armory (-3) 1900 | -7/Scraptown | Discovered new exit (range 11) 2391 | -7/Scraptown | Visited IN-MT5's Study 2418 | -7/Scraptown | Visited Red Mages 2490 | -7/Scraptown | Visited Spacefarers 2569 | -7/Scraptown | Visited Bundlers 2751 | -7/Scraptown | Visited UFD Registry 2751 | -7/Scraptown | Registered with UFD as "Protocycle" 2804 | -7/Scraptown | Visited Chapter 10 2848 | -7/Scraptown | Visited Abandonware Association 2869 | -7/Scraptown | Learned abandonware demo "HACKBUD.EXE" 2869 | -7/Scraptown | Learned abandonware demo "MELTYB.EXE" 2910 | -7/Scraptown | Visited A0-MCA Data Center 2983 | -7/Scraptown | Given an A- rating by A0-MCA 3060 | -7/Scraptown | Found A0-MCA's Component Scanner 3093 | -7/Scraptown | Visited LU-1G1's Boring Crew 3460 | -7/Scraptown | Visited Scrapoid Pod Storage 3508 | -7/Scraptown | Visited Science Testing Area 3551 | -7/Scraptown | Visited Supply Room 3590 | -7/Scraptown | Visited Science Guys 3820 | -7/Scraptown | Discovered new exit (range 5) 4594 | -7/Scraptown | Met Optimus 4594 | -7/Scraptown | Accepted into 0bPrime 4696 | -7/Scraptown | Entered Factory 4696 | -5/Factory | Evolved 10 slots: Propulsion x2, Utility x7, Weapon x1 4706 | -5/Factory | Garrison activated, responded to threat 4810 | -5/Factory | Garrison activated, responded to threat 5278 | -5/Factory | Garrison activated, responded to threat 5390 | -5/Factory | Lost 4 parts (3n1w) 5663 | -5/Factory | Loaded intel: 8 recycling unit locations 5755 | -5/Factory | Build established: Scavenger-Skirmisher 5796 | -5/Factory | Repaired Spk. Medium Treads 5850 | -5/Factory | Cargo convoy interrupted 6052 | -5/Factory | System corruption reached 10% 6059 | -5/Factory | Released all parts (4) 6064 | -5/Factory | Core integrity fell below 50% 6084 | -5/Factory | Core integrity fell below 20% 6091 | -5/Factory | Destroyed by P-70 Sage with High-powered Shock Rifle Last Messages --------------- dispatching reinforcements to local area. 06082_ Slug penetrates Wall. 06082_ K-01 Serf collects debris. 06084_ HV Slug penetrates P-70 Sage. 06084_ P-70 Sage suffers critical hit (Destroy). 06084_ Destroyed Antigrav System. 06085_ K-01 Serf collects debris. 06085_ K-01 Serf suffers critical hit (Destroy). 06085_ Slug penetrates Wall. 06086_ HV Slug penetrates P-70 Sage. 06086_ HV Slug penetrates Earth. 06087_ U-05 Engineer lays Concrete. 06087_ Hyp. Coil Gun destroyed. 06088_ K-01 Serf collects debris. 06088_ Slug penetrates Wall. 06089_ U-05 Engineer lays Concrete. 06090_ K-01 Serf destroyed. 06090_ P-70 Sage repels hacking attempt. 06091_ U-05 Engineer builds a Wall. 06091_ K-01 Serf collects debris. Map ----- +----------------------------------------------------+ | ????## # ## #?????????????????????????? | | ????## # ## #?????????????????????????? | | ????## #####+##### ########??????????????????? | | ????## ! %= ?????????????????? | | ????## == %=*|! ?????????????????? | | ????## !%*!%[!%%%%= ?????????????????? | | ????## *!%####/###########??????????????????? | | ????## # # #??????????????????? | | ??? ## ### #??????????????????? | | ## # # """"""" #??????????????????? | | #+### % ### """"""" #??????????????????? | | # """"""" #??????????????????? | | " " + """"""" #??????????????????? | | # u #??????????????????? | | #/### # """"""" #??????????????????? | | ###+########## ! """"""" #??????????????????? | | ?? # #### """"""" #??????????????????? | | ??????? "??????# h"""""""gu##?????????????????? | | ???????? "?????# h ##?????????????????? | | ????????? """?#####/## ;; ;#?????????????????? | | ??????????"""?# % ; #?????????????????? | | ??????????""??# ^ ; #?????????????????? | | ??????????????# #?????????????????? | | ??????????????# p ####k#?????????????? | | ??????????????# ; #?????????????? | | ??????????????# @= k ; #????????????????? | | ????????????????####;; % ;; #????????????????? | | ??????????????????# = # u ???????????? | | ??????????????????# s ? #####??????????? | | ??????????????????# sss T? #??????????????? | | ??????????????????# ????????????????? | | ??????????????????# ##### #??????????????? | | ??????????????????# ?????######??????????????? | | ??????????????????# ?????????????????????????? | | ??????????????????# ?????????????????????????? | | ??????????????????# ?????????????????????????? | | ??????????????????# ?????????????????????????? | | ??????????????????+ ?????????????????????????? | | ??????????????????# ??????????????????????????? | | ???????????????????? ??????????????????????????? | | ?????????????????????? ??????????????????????????? | | ?????????????????????????????????????????????????? | | ?????????????????????????????????????????????????? | | ?????????????????????????????????????????????????? | | ?????????????????????????????????????????????????? | | ?????????????????????????????????????????????????? | | ?????????????????????????????????????????????????? | | ?????????????????????????????????????????????????? | | ?????????????????????????????????????????????????? | | ?????????????????????????????????????????????????? | +----------------------------------------------------+ Best States ------------- Heat Dissipation 59 Coolant Potential 50 Energy Generation 19 Energy Capacity 315 Matter Stores 300 Matter Capacity 300 Sight Range 16 Robot Scan Range 15 Terrain Scan Density 10 Armor Coverage 225 Resistance: KI 30 Weapon Cycling 15 Evasion (%) 55 Recoil Reduction 4 Item Schematics ----------------- None Robot Schematics ------------------ None Fabricated ------------ Nothing Repaired ---------- Spk. Medium Treads | 2% | -5/Factory Studied --------- None Alien Tech Used ----------------- None Achievements -------------- None Challenges ------------ None Game ------ Seed SurveybotCannonConstruct Manual? 0 Play Time 00:43:44 Cumulative 45.1 hours Start 2026.09.08 @ 03:21:54 End 2026.09.08 @ 04:08:41 Sessions 1 Manual Loads 0 Difficulty Rogue Special Mode None Game No. 51 Rogue 48 Adventurer 3 Explorer 0 Win Type - Total 1 Types 1/0/0/0/0/0/0/0/0/0 Lore% 44 Gallery% 36 Achievement% 35 Wizard Run 0 Options --------- Layout 1 ASCII 0 Keyboard 0 Movement Mouse Keybinds 0 Fullscreen 1 Font 32/SmallcapsGlow Map View 50x35 Zoom Use 0% Tactical HUD 1 Map Filters NONE Filters NONE Steam 1 RUN: 4a5bd008-ec41-47d6-8b2c-04cbcf72c1fd